bitfinex-derivatives/quotes_SOLF0:USTF0_20260315
["timestamp","ask_amount","ask_price","bid_price","bid_amount"]
[1773597343326,10.159,88.577,88.516,3.95082548]
[1773597343727,3.77136695,88.576,88.516,3.95082548]
[1773597343922,3.77136695,88.559,88.498,3.95082548]
[1773597344424,3.77136695,88.559,88.481,14.12082548]
[1773597344628,3.77136695,88.559,88.482,3.95082548]
[1773597345119,10.163,88.543,88.482,3.95082548]
[1773597345520,3.77136695,88.559,88.486,3.95082548]
[1773597346132,3.77136695,88.559,88.492,3.95082548]
[1773597346929,3.77136695,88.559,88.496,3.95082548]
[1773597347527,3.77136695,88.559,88.498,3.95082548]
[1773597348029,10.16,88.568,88.498,3.95082548]
[1773597348231,10.16,88.568,88.499,3.95082548]
[1773597349531,10.16,88.568,88.48,7.61584749]
[1773597349532,10.16,88.568,88.503,3.95082548]
[1773597349922,3.75710663,88.562,88.503,3.95082548]
[1773597351627,10.161,88.561,88.503,3.95082548]
[1773597353233,10.159,88.57,88.505,3.96344632]
[1773597353833,3.81955853,88.569,88.505,3.96344632]
[1773597354331,3.81955853,88.559,88.505,3.96344632]
[1773597354533,3.81955853,88.559,88.487,3.96344632]
[1773597354728,3.81955853,88.559,88.489,3.96344632]
[1773597355629,7.61584749,88.57,88.47,7.61584749]
[1773597355630,3.81760282,88.555,88.491,3.96344632]
[1773597356230,3.81760282,88.555,88.493,3.96344632]
[1773597356430,3.81760282,88.555,88.495,3.96344632]
[1773597357229,3.81760282,88.555,88.496,9.99749189]
[1773597357423,10.162,88.546,88.495,3.96344632]
[1773597357832,3.81760282,88.555,88.496,13.96094807]
[1773597358130,3.5472399,88.545,88.496,3.96344632]
[1773597359134,10.163,88.54,88.484,3.96344632]
[1773597359336,10.163,88.54,88.486,3.96344632]
[1773597359636,10.163,88.54,88.488,3.96344632]
[1773597359836,10.163,88.54,88.49,3.96344632]
[1773597360136,10.163,88.54,88.491,10.01534373]
[1773597360531,3.50847003,88.567,88.492,3.96344632]
[1773597360730,3.50847003,88.567,88.494,3.96344632]
[1773597360932,3.50326876,88.547,88.495,10.01534373]
[1773597361127,3.50326876,88.547,88.442,34.09]
[1773597361128,3.50326876,88.547,88.496,10.01534373]
[1773597361335,3.50326876,88.547,88.497,10.01534373]
[1773597361534,3.50326876,88.547,88.499,3.96344632]
[1773597361741,3.60330325,88.587,88.501,3.96344632]
[1773597361931,3.60330325,88.569,88.466,3.96344632]
[1773597362340,10.164,88.53,88.473,3.96344632]
[1773597362939,3.60330325,88.534,88.475,3.96344632]
[1773597363337,3.60330325,88.534,88.455,3.96344632]
[1773597363532,3.56845758,88.522,88.455,3.96344632]
[1773597363938,3.56845758,88.522,88.435,3.96344632]
[1773597364138,3.51782995,88.497,88.435,3.96344632]
[1773597364641,3.56159113,88.494,88.435,3.96344632]
[1773597365536,3.56159113,88.491,88.411,3.96344632]
[1773597365940,3.56159113,88.491,88.381,35.56]
[1773597365941,3.58112053,88.474,88.388,10.17185223]
[1773597366139,3.58112053,88.474,88.395,3.96344632]
[1773597366540,3.58112053,88.47,88.397,3.96344632]
[1773597367238,3.46439107,88.509,88.401,3.96344632]
[1773597367843,3.32131381,88.482,88.404,3.96344632]
[1773597369634,3.3168535,88.478,88.404,3.96344632]
[1773597369835,3.3690516,88.509,88.404,3.96344632]
[1773597370240,3.3690516,88.509,88.387,10.17185223]
[1773597370241,3.3690516,88.503,88.421,3.96344632]
[1773597371646,3.36913703,88.498,88.423,3.96344632]
[1773597372246,3.36913703,88.498,88.426,3.96344632]
[1773597373547,3.36913703,88.498,88.43,3.96344632]
[1773597374652,3.37702046,88.495,88.413,3.96344632]
[1773597375453,3.37594896,88.482,88.416,3.96344632]
[1773597376751,3.37594896,88.482,88.418,10.177]
[1773597377355,3.37594896,88.482,88.416,3.96344632]
[1773597378551,10.171,88.471,88.416,3.96344632]
[1773597380454,13.56712076,88.471,88.416,3.96344632]
[1773597381750,13.56712076,88.471,88.406,10.178]
[1773597381751,10.171,88.466,88.407,3.96344632]
[1773597381949,3.3687467,88.47,88.39,7.66298179]
[1773597381950,7.66298179,88.5,88.418,3.94365189]
[1773597382149,3.37409042,88.486,88.418,3.94365189]
[1773597382955,3.33753968,88.483,88.418,3.94365189]
[1773597383751,3.3443885,88.473,88.418,3.94365189]
[1773597383953,3.3443885,88.499,88.418,3.94365189]
[1773597384162,13.5103885,88.515,88.456,3.94365189]
[1773597385354,3.43093909,88.511,88.422,3.94365189]
[1773597386261,3.3618952,88.488,88.424,3.94365189]
[1773597387562,13.28109432,88.485,88.426,10.176]
[1773597387962,3.11209432,88.485,88.427,3.94365189]
[1773597388765,3.11209432,88.485,88.41,7.66298179]
[1773597388766,3.11209432,88.485,88.429,3.94365189]
[1773597390466,3.02057067,88.502,88.429,3.94365189]
[1773597391268,3.02086544,88.493,88.429,3.94365189]
[1773597392170,3.02112247,88.489,88.429,3.94365189]
[1773597393070,10.17,88.482,88.429,3.94365189]
[1773597393973,2.99123477,88.481,88.429,3.94365189]
[1773597394371,2.99123477,88.479,88.414,3.94365189]
[1773597395569,13.14356236,88.474,88.414,3.94365189]
[1773597395775,2.97503893,88.473,88.414,3.94365189]
[1773597399275,2.80895771,88.47,88.414,3.94365189]
[1773597399575,2.80895771,88.47,88.402,3.94365189]
[1773597399778,12.98431404,88.458,88.402,3.94365189]
[1773597400581,2.81231404,88.491,88.409,3.94365189]
[1773597400877,2.81231404,88.491,88.408,10.17185223]
[1773597400878,2.81231404,88.491,88.411,3.94365189]
[1773597401575,2.81155962,88.472,88.414,3.94365189]
[1773597402377,2.80397774,88.466,88.414,3.94365189]
[1773597403476,10.171,88.473,88.415,3.94365189]
[1773597403682,2.79782638,88.472,88.415,3.94365189]
[1773597404179,2.79782638,88.487,88.418,3.94365189]
[1773597404378,2.79782638,88.487,88.419,3.94365189]
[1773597404785,10.17,88.48,88.428,10.176]
[1773597405282,10.17,88.48,88.42,3.94365189]
[1773597405581,2.79913595,88.479,88.42,3.94365189]
[1773597405983,2.79913595,88.479,88.421,10.17185223]
[1773597406180,2.7979635,88.474,88.424,10.17185223]
[1773597406887,12.97120319,88.47,88.42,3.94365189]
[1773597407083,2.80020319,88.47,88.42,3.94365189]
[1773597407284,2.80020319,88.47,88.413,10.17185223]
[1773597408079,10.173,88.453,88.413,10.17185223]
[1773597408383,10.173,88.453,88.416,10.17185223]
[1773597408682,10.171,88.466,88.418,3.94365189]
[1773597408982,10.171,88.466,88.419,3.94365189]
[1773597409283,10.17,88.474,88.419,3.94365189]
[1773597409486,2.8438158,88.485,88.426,10.17185223]
[1773597410183,2.8438021,88.474,88.426,10.17185223]
[1773597410484,2.8438021,88.474,88.418,10.17185223]
[1773597410675,10.172,88.464,88.418,10.17185223]
[1773597410880,2.8438021,88.474,88.418,10.17185223]
[1773597411785,10.171,88.467,88.423,10.17185223]
[1773597412479,10.171,88.467,88.424,10.17185223]
[1773597413784,2.8438021,88.474,88.419,0.00085223]
[1773597413981,2.8438021,88.474,88.406,3.75024425]
[1773597414778,2.81318312,88.469,88.411,3.75024425]
[1773597416688,10.171,88.467,88.412,10.178]
[1773597417084,13.03544332,88.467,88.412,10.178]
[1773597417579,10.172,88.462,88.411,3.75024425]
[1773597417785,5.76568512,88.46,88.411,3.75024425]
[1773597418590,10.172,88.457,88.411,3.75024425]
[1773597420186,10.173,88.454,88.411,3.75024425]
[1773597420684,2.7353146,88.453,88.404,10.179]
[1773597420887,10.173,88.452,88.405,3.75024425]
[1773597421186,2.7353146,88.453,88.405,3.75024425]
[1773597421391,2.7353146,88.468,88.421,3.75024425]
[1773597422089,2.74857896,88.467,88.421,3.75024425]
[1773597422585,2.74857896,88.467,88.372,26.9560286]
[1773597422586,2.74857896,88.459,88.407,3.75024425]
[1773597423085,2.74857896,88.459,88.41,3.06756799]
[1773597423292,2.74857896,88.459,88.411,3.75024425]
[1773597424894,10.173,88.456,88.411,3.75024425]
[1773597427497,2.74857896,88.459,88.411,3.75024425]
[1773597428390,10.171,88.467,88.411,3.75024425]
[1773597428593,10.171,88.467,88.421,3.75024425]
[1773597435705,2.72103937,88.466,88.421,3.75024425]
[1773597438107,12.87203875,88.464,88.421,3.75024425]
[1773597438310,2.70003875,88.463,88.421,3.75024425]
[1773597441204,2.70003875,88.463,88.402,20.4670183]
[1773597441205,2.70291829,88.489,88.431,3.75024425]
[1773597441517,2.70291829,88.479,88.431,3.75024425]
[1773597441808,2.73907753,88.477,88.431,3.75024425]
[1773597442310,10.169,88.487,88.431,3.75024425]
[1773597443711,10.169,88.487,88.434,3.90218899]
[1773597444512,10.169,88.487,88.441,3.90218899]
[1773597446412,10.168,88.497,88.442,3.90218899]
[1773597446906,2.7425855,88.496,88.442,3.90218899]
[1773597447105,2.7425855,88.494,88.442,3.90218899]
[1773597447607,10.167,88.508,88.451,3.90218899]
[1773597447807,2.71221677,88.507,88.451,3.90218899]
[1773597448011,2.71221677,88.499,88.451,3.90218899]
[1773597448612,3.0667939,88.49,88.451,3.90218899]
[1773597449113,2.7103566,88.489,88.451,3.90218899]
[1773597452520,2.7103566,88.489,88.44,3.0667939]
[1773597452812,2.7103566,88.489,88.438,3.90218899]
[1773597453019,2.65932469,88.479,88.426,35.6]
[1773597453214,2.65932469,88.479,88.43,3.0667939]
[1773597453518,10.47347969,88.523,88.426,35.6]
[1773597453519,3.0667939,88.51,88.461,3.90218899]
[1773597453815,2.65932469,88.519,88.461,3.90218899]
[1773597454618,2.66020773,88.518,88.461,3.90218899]
[1773597455514,2.66090202,88.513,88.461,3.90218899]
[1773597456617,2.65815757,88.511,88.461,3.90218899]
[1773597463225,2.65815757,88.511,88.406,33.93]
[1773597463226,10.165,88.521,88.471,3.90218899]
[1773597463926,2.57310061,88.52,88.471,3.90218899]
[1773597464524,2.57310061,88.517,88.471,3.90218899]
[1773597465529,2.51973394,88.528,88.471,3.90218899]
[1773597466526,2.52505694,88.526,88.471,3.90218899]
[1773597467734,2.52508445,88.52,88.471,3.90218899]
[1773597468033,2.52602496,88.509,88.454,3.90218899]
[1773597468236,2.52602496,88.519,88.471,3.90218899]
[1773597469634,12.69102496,88.519,88.471,3.90218899]
[1773597470528,2.50194177,88.518,88.471,3.90218899]
[1773597472040,2.46793571,88.499,88.445,3.66215615]
[1773597472835,2.4745622,88.489,88.445,3.66215615]
[1773597473739,2.4745622,88.487,88.445,3.66215615]
[1773597474242,2.49729959,88.485,88.432,3.95602985]
[1773597475641,10.169,88.484,88.432,3.95602985]
[1773597476246,2.50413306,88.476,88.432,3.95602985]
[1773597476643,2.5046197,88.469,88.425,10.35121432]
[1773597476843,2.5046197,88.469,88.42,3.95602985]
[1773597478142,2.5046197,88.469,88.421,3.95602985]
[1773597480446,10.17,88.474,88.421,3.95602985]
[1773597480841,10.169,88.483,88.441,3.95602985]
[1773597481039,2.42214526,88.494,88.441,3.95602985]
[1773597481444,10.17,88.481,88.441,3.95602985]
[1773597481749,3.0667939,88.49,88.441,3.95602985]
[1773597481750,2.42214526,88.48,88.441,3.95602985]
[1773597481946,5.48893916,88.48,88.441,3.95602985]
[1773597482346,2.42182796,88.479,88.431,3.95602985]
[1773597482549,2.42182796,88.477,88.431,3.95602985]
[1773597483546,2.42161646,88.474,88.42,3.95602985]
[1773597483744,3.0667939,88.47,88.42,3.95602985]
[1773597483948,2.42161646,88.474,88.421,3.95602985]
[1773597485548,12.6805523,88.467,88.421,3.95602985]
[1773597487043,2.5095523,88.467,88.421,3.95602985]
[1773597487244,2.5095523,88.467,88.411,20.52921432]
[1773597487245,10.17,88.476,88.43,7.02282375]
[1773597487447,10.17,88.476,88.431,3.95602985]
[1773597488045,2.65064302,88.475,88.431,3.95602985]
[1773597491945,2.60969171,88.529,88.431,3.95602985]
[1773597492150,2.60969171,88.489,88.431,3.95602985]
[1773597492451,10.17,88.48,88.431,3.95602985]
[1773597492651,2.60969171,88.479,88.431,3.95602985]
[1773597493553,10.17,88.477,88.431,3.95602985]
[1773597495646,10.168,88.495,88.451,3.95602985]
[1773597496650,12.7570895,88.495,88.451,3.95602985]
[1773597496853,2.62137529,88.494,88.451,3.95602985]
[1773597497056,2.62137529,88.491,88.451,3.95602985]
[1773597498058,13.23393999,88.5,88.451,3.95602985]
[1773597498258,2.61969455,88.499,88.451,3.95602985]
[1773597498653,10.168,88.496,88.451,3.95602985]
[1773597498859,20.329,88.527,88.441,10.35121432]
[1773597498860,2.62007808,88.495,88.441,3.95602985]
[1773597499554,2.62007808,88.495,88.45,3.06593999]
[1773597499752,2.62588826,88.509,88.451,3.95602985]
[1773597500153,2.62588826,88.495,88.451,3.95602985]
[1773597501659,2.63672541,88.492,88.451,3.95602985]
[1773597502062,2.62940822,88.489,88.434,14.33920253]
[1773597502360,12.79940822,88.482,88.434,14.33920253]
[1773597502564,2.62940822,88.481,88.434,14.33920253]
[1773597503154,2.62940822,88.481,88.434,3.98798821]
[1773597503560,10.17,88.477,88.434,3.98798821]
[1773597504356,10.17,88.477,88.434,14.33920253]
[1773597504563,10.171,88.467,88.422,3.98798821]
[1773597505561,2.55606724,88.466,88.422,3.98798821]
[1773597505762,10.172,88.464,88.422,3.98798821]
[1773597506362,10.172,88.459,88.422,3.98798821]
[1773597507462,10.173,88.453,88.412,10.35121432]
[1773597507766,12.80247338,88.453,88.409,3.98798821]
[1773597508365,2.65167463,88.474,88.421,3.98798821]
[1773597508766,2.65022234,88.469,88.421,3.98798821]
[1773597509670,10.172,88.465,88.421,3.98798821]
[1773597510368,12.83054994,88.465,88.421,3.98798821]
[1773597511868,2.6565285,88.459,88.418,10.35121432]
[1773597512074,2.6565285,88.459,88.414,10.35121432]
[1773597512768,10.173,88.451,88.414,10.35121432]
[1773597513068,10.173,88.451,88.41,10.35121432]
[1773597513265,10.173,88.451,88.411,10.35121432]
[1773597514167,10.173,88.451,88.412,10.35121432]
[1773597514767,10.173,88.451,88.408,10.35121432]
[1773597515164,10.174,88.448,88.409,10.35121432]
[1773597515564,10.174,88.448,88.41,3.98798821]
[1773597516172,10.174,88.448,88.41,14.33920253]
[1773597517768,10.174,88.448,88.411,3.98798821]
[1773597518272,10.173,88.456,88.411,3.98798821]
[1773597519173,2.64472539,88.453,88.411,3.98798821]
[1773597519967,2.64217601,88.466,88.421,3.98798821]
[1773597520375,2.64217601,88.466,88.423,3.98798821]
[1773597520578,10.172,88.463,88.423,3.98798821]
[1773597522874,10.173,88.456,88.419,3.98798821]
[1773597523070,2.62174218,88.462,88.419,3.98798821]
[1773597524679,2.62174218,88.462,88.418,10.35121432]
[1773597524680,2.67174488,88.459,88.418,10.35121432]
[1773597524982,20.334,88.506,88.404,3.98798821]
[1773597524983,2.67174488,88.449,88.409,10.35121432]
[1773597525678,10.174,88.445,88.409,10.35121432]
[1773597528083,2.67174488,88.449,88.408,10.35121432]
[1773597528282,2.67174488,88.449,88.41,3.06593999]
[1773597528474,2.67174488,88.449,88.411,3.98798821]
[1773597528972,10.173,88.454,88.411,3.98798821]
[1773597533084,10.174,88.445,88.411,3.98798821]
[1773597533784,2.75249951,88.444,88.407,10.35121432]
[1773597536485,10.174,88.442,88.407,10.35121432]
[1773597537082,10.174,88.442,88.405,10.35121432]
[1773597537381,10.174,88.442,88.403,10.35121432]
[1773597537580,10.174,88.442,88.403,14.15345891]
[1773597537786,10.174,88.442,88.404,3.80224459]
[1773597538788,2.68946973,88.454,88.404,3.80224459]
[1773597539184,2.68956512,88.449,88.398,10.35121432]
[1773597539681,10.176,88.428,88.398,10.35121432]
[1773597542290,10.176,88.428,88.395,10.35121432]
[1773597542892,2.7322886,88.427,88.395,10.35121432]
[1773597544792,2.73280607,88.44,88.401,3.80224459]
[1773597545695,2.73250126,88.452,88.411,3.80224459]
[1773597546896,10.175,88.437,88.402,10.35121432]
[1773597547202,10.175,88.437,88.403,10.35121432]
[1773597548196,10.175,88.437,88.404,10.35121432]
[1773597549101,10.175,88.437,88.405,10.35121432]
[1773597550107,2.70584801,88.434,88.385,3.80224459]
[1773597551507,10.176,88.424,88.385,3.80224459]
[1773597552503,2.70584801,88.434,88.385,3.80224459]
[1773597552710,2.7332825,88.407,88.37,3.80224459]
[1773597552908,2.73716784,88.419,88.371,3.80224459]
[1773597553802,10.176,88.426,88.381,3.80224459]
[1773597554605,12.87528619,88.434,88.391,3.80224459]
[1773597554811,10.175,88.434,88.391,3.80224459]
[1773597556709,10.176,88.429,88.391,3.80224459]
[1773597560911,10.176,88.425,88.391,3.80224459]
[1773597565908,2.66238412,88.428,88.391,3.80224459]
[1773597566111,2.71031736,88.439,88.391,3.80224459]
[1773597566311,2.71031736,88.439,88.378,13.46320517]
[1773597566312,2.71031736,88.439,88.401,3.94651064]
[1773597566507,2.71031736,88.416,88.378,13.46320517]
[1773597566713,2.71009149,88.429,88.381,3.94651064]
[1773597567515,2.71009149,88.429,88.39,7.01507589]
[1773597567715,2.71009149,88.429,88.391,3.94651064]
[1773597569418,10.175,88.439,88.391,3.94651064]
[1773597569621,3.06856525,88.46,88.411,3.94651064]
[1773597569821,2.71826067,88.459,88.411,3.94651064]
[1773597570414,2.71826067,88.459,88.42,3.06856525]
[1773597571423,2.71826067,88.459,88.411,3.94651064]
[1773597571819,2.69357774,88.451,88.397,3.94651064]
[1773597572018,2.69357774,88.451,88.4,3.06856525]
[1773597572222,2.69357774,88.451,88.401,3.94651064]
[1773597573526,2.69420713,88.449,88.401,3.94651064]
[1773597574523,2.72789583,88.446,88.401,3.94651064]
[1773597580329,2.72789583,88.446,88.377,20.4670183]
[1773597580330,10.173,88.456,88.411,3.94651064]
[1773597580825,2.66678552,88.453,88.411,3.94651064]
[1773597581424,2.66678552,88.451,88.411,3.94651064]
[1773597583231,12.83020231,88.45,88.411,3.94651064]
[1773597583428,2.65720231,88.449,88.411,3.94651064]
[1773597583833,3.06856525,88.46,88.397,13.46320517]
[1773597583834,2.65651496,88.447,88.398,3.94651064]
[1773597584028,2.65651496,88.447,88.401,3.94651064]
[1773597584831,2.65651496,88.447,88.411,3.94651064]
[1773597585536,10.174,88.445,88.411,3.94651064]
[1773597588133,2.67983245,88.444,88.399,3.94651064]
[1773597588329,2.67983245,88.442,88.4,3.94651064]
[1773597588535,2.67983245,88.439,88.389,3.94651064]
[1773597589538,10.176,88.426,88.389,3.94651064]
[1773597593539,12.86631677,88.426,88.389,3.94651064]
[1773597593737,10.177,88.422,88.389,3.94651064]
[1773597598634,2.67660348,88.419,88.38,16.53177042]
[1773597599544,10.177,88.418,88.38,16.53177042]
[1773597599839,10.177,88.418,88.381,4.02004026]
[1773597600544,2.67356024,88.444,88.391,4.02004026]
[1773597600738,2.6818488,88.458,88.391,4.02004026]
[1773597600936,10.17,88.482,88.431,4.02004026]
[1773597601146,2.6818488,88.482,88.441,4.02004026]
[1773597601449,27.51958909,88.581,88.398,35.62]
[1773597601450,2.6818488,88.529,88.47,3.06856525]
[1773597601644,2.6818488,88.517,88.47,7.08860551]
[1773597602240,10.47347969,88.557,88.47,7.08860551]
[1773597602241,10.166,88.516,88.49,3.06856525]
[1773597602540,2.63903489,88.529,88.49,3.06856525]
[1773597603042,2.63562565,88.543,88.491,4.02004026]
[1773597603247,35.62,88.558,88.402,20.358]
[1773597603248,38.25562565,88.558,88.511,4.02004026]
[1773597603639,2.69105897,88.579,88.52,7.08860551]
[1773597603844,2.69105897,88.579,88.431,27.54558165]
[1773597603845,2.69105897,88.579,88.53,3.06856525]
[1773597604045,2.69105897,88.579,88.53,7.08860551]
[1773597604245,2.69105897,88.579,88.531,4.02004026]
[1773597604543,2.69105897,88.559,88.498,4.02004026]
[1773597605550,10.162,88.551,88.498,4.02004026]
[1773597606151,2.69105897,88.559,88.511,4.02004026]
[1773597606443,10.161,88.557,88.511,4.02004026]
[1773597607640,10.16,88.568,88.511,4.02004026]
[1773597608045,1.9652967,88.609,88.468,35.62]
[1773597608046,2.6472013,88.586,88.531,4.02004026]
[1773597608449,2.6472013,88.574,88.52,3.06856525]
[1773597608642,2.65356273,88.549,88.489,4.02004026]
[1773597608848,3.06856525,88.54,88.489,4.02004026]
[1773597609146,3.06856525,88.54,88.491,4.02004026]
[1773597609352,2.65356273,88.529,88.477,4.02004026]
[1773597609552,3.06856525,88.54,88.481,4.02004026]
[1773597609747,13.23056525,88.55,88.5,3.06856525]
[1773597610051,10.162,88.55,88.501,4.02004026]
[1773597610251,13.23056525,88.55,88.501,4.02004026]
[1773597610447,15.92647905,88.55,88.501,4.02004026]
[1773597610654,10.163,88.539,88.501,4.02004026]
[1773597611056,12.85462924,88.539,88.486,4.02004026]
[1773597611255,3.06856525,88.54,88.486,4.02004026]
[1773597611256,12.85562924,88.535,88.486,4.02004026]
[1773597611448,2.69162924,88.529,88.486,4.02004026]
[1773597611853,2.69162924,88.529,88.471,4.02004026]
[1773597612450,9.60022608,88.523,88.471,4.02004026]
[1773597612648,2.67278825,88.547,88.481,4.02004026]
[1773597612845,3.06856525,88.54,88.481,4.02004026]
[1773597613151,2.67903304,88.539,88.481,4.02004026]
[1773597614054,2.66428644,88.519,88.464,4.02004026]
[1773597614754,10.166,88.515,88.464,4.02004026]
[1773597616359,2.68322243,88.505,88.464,4.02004026]
[1773597617352,10.169,88.487,88.445,4.02004026]
[1773597617757,20.325,88.548,88.451,4.02004026]
[1773597617758,3.06435084,88.5,88.451,4.02004026]
[1773597617958,5.77239509,88.5,88.451,4.02004026]
[1773597618161,2.70804425,88.499,88.451,4.02004026]
[1773597618659,10.169,88.487,88.451,4.02004026]
[1773597619355,10.168,88.497,88.451,4.02004026]
[1773597619754,12.87399528,88.497,88.451,4.02004026]
[1773597623461,2.68826672,88.487,88.44,3.06435084]
[1773597624067,10.17,88.48,88.435,3.92871573]
[1773597624371,10.17,88.48,88.441,3.92871573]
[1773597625664,10.169,88.489,88.451,3.92871573]
[1773597626464,2.64987473,88.489,88.437,3.92871573]
[1773597627469,10.17,88.482,88.437,3.92871573]
[1773597628163,10.171,88.474,88.437,3.92871573]
[1773597628364,12.83224923,88.474,88.421,3.92871573]
[1773597628964,20.33,88.524,88.421,3.92871573]
[1773597628965,12.8672734,88.467,88.421,3.92871573]
[1773597629669,10.17,88.476,88.421,3.92871573]
[1773597629871,10.17,88.476,88.431,3.92871573]
[1773597630667,2.6962734,88.48,88.441,3.92871573]
[1773597631877,2.61977431,88.469,88.41,3.06435084]
[1773597632070,55.93,88.524,88.41,3.06435084]
[1773597632071,2.61977431,88.459,88.41,3.06435084]
[1773597632270,10.174,88.445,88.409,3.92871573]
[1773597632971,2.61995637,88.432,88.38,3.92871573]
[1773597633171,35.6,88.524,88.346,35.6]
[1773597633172,3.06435084,88.46,88.401,3.92871573]
[1773597633472,2.61995637,88.459,88.401,3.92871573]
[1773597633875,10.173,88.449,88.41,3.06435084]
[1773597634073,10.173,88.449,88.411,3.92871573]
[1773597635278,10.174,88.441,88.4,3.06435084]
[1773597635572,10.174,88.441,88.397,3.92871573]
[1773597635878,10.174,88.441,88.4,3.06435084]
[1773597636578,10.175,88.433,88.397,3.92871573]
[1773597637378,2.54154928,88.44,88.4,3.06435084]
[1773597637581,2.54154928,88.44,88.397,3.92871573]
[1773597637972,2.54246293,88.439,88.38,3.06435084]
[1773597638174,10.176,88.429,88.38,6.99306657]
[1773597638379,10.176,88.429,88.381,3.92871573]
[1773597640079,10.176,88.429,88.39,3.06435084]
[1773597640875,12.71889829,88.429,88.381,3.92871573]
[1773597643976,10.176,88.426,88.381,3.92871573]
[1773597645285,10.177,88.419,88.381,3.92871573]
[1773597645482,2.62828711,88.426,88.381,3.92871573]
[1773597646580,2.62698651,88.422,88.37,3.06435084]
[1773597646784,2.62698651,88.422,88.371,3.92871573]
[1773597647482,2.62698651,88.422,88.38,3.06435084]
[1773597647788,10.177,88.414,88.38,3.06435084]
[1773597649782,10.177,88.414,88.371,3.92871573]
[1773597650388,12.91840118,88.414,88.371,3.92871573]
[1773597652891,12.91840118,88.414,88.38,3.06435084]
[1773597653087,2.74140118,88.414,88.38,3.06435084]
[1773597653385,2.74140118,88.414,88.352,35.62]
[1773597653591,2.77345645,88.404,88.36,3.06435084]
[1773597655496,2.79383162,88.398,88.358,3.89888021]
[1773597655797,2.79383162,88.418,88.371,3.89888021]
[1773597656597,2.77059303,88.456,88.38,3.06435084]
[1773597656790,2.78319806,88.439,88.38,3.06435084]
[1773597656998,2.78319806,88.429,88.371,3.89888021]
[1773597657891,2.78486261,88.416,88.371,3.89888021]
[1773597659497,10.178,88.412,88.371,3.89888021]
[1773597659799,10.178,88.412,88.352,35.62]
[1773597659800,2.78793522,88.411,88.36,3.06435084]
[1773597660595,2.78793522,88.409,88.358,3.89888021]
[1773597660791,10.179,88.401,88.361,3.89888021]
[1773597661099,10.179,88.401,88.37,3.06435084]
[1773597661909,10.179,88.401,88.337,13.46320517]
[1773597661910,2.8257726,88.435,88.391,3.89888021]
[1773597662101,2.8257726,88.435,88.39,3.06435084]
[1773597662711,10.176,88.424,88.38,6.96323105]
[1773597662913,2.79505747,88.423,88.37,6.96323105]
[1773597663209,2.79505747,88.423,88.371,3.89888021]
[1773597663412,2.79505747,88.411,88.36,3.06435084]
[1773597663903,2.79505747,88.411,88.361,3.89888021]
[1773597664115,2.79505747,88.411,88.37,3.06435084]
[1773597664612,10.178,88.41,88.37,3.06435084]
[1773597667505,10.177,88.418,88.38,3.06435084]
[1773597669810,10.177,88.418,88.371,3.89888021]
[1773597670001,12.95939836,88.426,88.372,10.182]
[1773597670206,12.95939836,88.426,88.37,3.06435084]
[1773597670207,12.95939836,88.426,88.381,3.89888021]
[1773597670508,2.78357961,88.425,88.37,6.96323105]
[1773597670698,2.78357961,88.425,88.371,3.89888021]
[1773597670904,2.78326651,88.409,88.36,13.30863985]
[1773597671098,2.78326651,88.409,88.36,3.06435084]
[1773597672505,10.179,88.403,88.36,3.06435084]
[1773597672706,2.78326651,88.409,88.36,6.96323105]
[1773597673014,2.77283432,88.439,88.38,6.96323105]
[1773597673906,3.06435084,88.43,88.38,6.96323105]
[1773597674210,2.77220653,88.429,88.38,6.96323105]
[1773597674712,2.77220653,88.424,88.38,6.96323105]
[1773597675809,2.77707242,88.479,88.413,3.89888021]
[1773597676013,2.77707242,88.479,88.43,3.06435084]
[1773597676514,10.171,88.467,88.42,6.96323105]
[1773597676714,2.77707242,88.459,88.413,10.24428901]
[1773597676914,2.77707242,88.459,88.408,10.24428901]
[1773597677116,2.77707242,88.459,88.41,10.24428901]
[1773597677317,10.173,88.455,88.41,13.30863985]
[1773597678220,10.173,88.455,88.41,3.06435084]
[1773597678413,13.05742172,88.455,88.41,3.06435084]
[1773597678715,2.88442172,88.454,88.41,3.06435084]
[1773597679017,2.88442172,88.454,88.41,3.06767337]
[1773597679315,10.173,88.451,88.41,3.06767337]
[1773597682816,2.98602418,88.448,88.408,10.24428901]
[1773597683024,2.98602418,88.448,88.4,3.06767337]
[1773597683320,2.98602418,88.448,88.393,10.24428901]
[1773597683519,2.98602418,88.435,88.393,10.24428901]
[1773597684217,10.177,88.415,88.389,10.24428901]
[1773597684417,10.177,88.415,88.381,10.24428901]
[1773597684815,10.177,88.415,88.378,10.24428901]
[1773597685320,10.177,88.415,88.379,10.24428901]